[Event "January 2 Early 2024"]
[Site "https://www.chess.com"]
[Date "2024.01.02"]
[Round "4"]
[White "Tarhan, Adar"]
[Black "Vokhidov, Shamsiddin"]
[Result "0-1"]
[Board "16"]
[TimeControl "180+1"]
[WhiteFideId "34544712"]
[BlackFideId "14204223"]
[WhiteElo "2718"]
[BlackElo "2981"]
[WhiteTeam "TUR"]
[BlackTeam "UZB"]
[WhiteClock "0:00:03"]
[BlackClock "0:01:38"]

1. e4 {[%clk 0:03:00]}  c5 {[%clk 0:03:00]} 2. Nf3 {[%clk 0:03:00]}  e6 {[%clk 0:03:00]} 3. d4 {[%clk 0:03:00]}  cxd4 {[%clk 0:03:01]} 4. Nxd4 {[%clk 0:03:00]}  Nc6 {[%clk 0:03:02]} 5. Nc3 {[%clk 0:03:00]}  Qc7 {[%clk 0:03:02]} 6. Be3 {[%clk 0:02:58]}  a6 {[%clk 0:03:01]} 7. Qf3 {[%clk 0:02:58]}  h5 {[%clk 0:03:00]} 8. Qg3 {[%clk 0:02:56]}  Ne5 {[%clk 0:03:00]} 9. h4 {[%clk 0:02:29]}  Nf6 {[%clk 0:02:57]} 10. Bf4 {[%clk 0:02:22]}  d6 {[%clk 0:02:56]} 11. O-O-O {[%clk 0:02:20]}  Bd7 {[%clk 0:02:54]} 12. Kb1 {[%clk 0:02:09]}  Rc8 {[%clk 0:02:53]} 13. Bd3 {[%clk 0:02:06]}  b5 {[%clk 0:02:53]} 14. Rhe1 {[%clk 0:01:47]}  b4 {[%clk 0:02:50]} 15. Nce2 {[%clk 0:01:47]}  a5 {[%clk 0:02:42]} 16. Nc1 {[%clk 0:01:26]}  Nxd3 {[%clk 0:02:33]} 17. Qxd3 {[%clk 0:01:27]}  e5 {[%clk 0:02:32]} 18. Nb5 {[%clk 0:01:27]}  Qb6 {[%clk 0:02:19]} 19. Nxd6+ {[%clk 0:01:23]}  Qxd6 {[%clk 0:02:17]} 20. Qe2 {[%clk 0:01:02]}  Qc7 {[%clk 0:02:12]} 21. Bg3 {[%clk 0:00:50]}  Be7 {[%clk 0:02:06]} 22. Nd3 {[%clk 0:00:42]}  Bb5 {[%clk 0:02:06]} 23. Qd2 {[%clk 0:00:35]}  Nd7 {[%clk 0:02:05]} 24. Nxe5 {[%clk 0:00:30]}  Nxe5 {[%clk 0:02:04]} 25. Qd5 {[%clk 0:00:31]}  Qxc2+ {[%clk 0:01:51]} 26. Ka1 {[%clk 0:00:31]}  Be2 {[%clk 0:01:46]} 27. Rb1 {[%clk 0:00:15]}  Nd3 {[%clk 0:01:40]} 28. Qb5+ {[%clk 0:00:10]}  Kf8 {[%clk 0:01:40]} 29. Qd7 {[%clk 0:00:03]}  Nxe1 {[%clk 0:01:38]} 0-1

[Event "January 2 Early 2024"]
[Site "https://www.chess.com"]
[Date "2024.01.02"]
[Round "4"]
[White "Santos Latasa, Jaime"]
[Black "Kuzhylnyi, Oleksandr"]
[Result "1-0"]
[Board "18"]
[TimeControl "180+1"]
[WhiteFideId "2293307"]
[BlackFideId "34110500"]
[WhiteElo "2945"]
[BlackElo "2667"]
[WhiteTeam "ESP"]
[BlackTeam "UKR"]
[WhiteClock "0:00:14"]
[BlackClock "0:00:05"]

1. Nf3 {[%clk 0:03:00]}  d5 {[%clk 0:02:59]} 2. e3 {[%clk 0:03:00]}  Nf6 {[%clk 0:02:59]} 3. c4 {[%clk 0:03:00]}  c6 {[%clk 0:02:59]} 4. Nc3 {[%clk 0:02:59]}  e6 {[%clk 0:02:59]} 5. Qc2 {[%clk 0:02:59]}  Bd6 {[%clk 0:02:57]} 6. b3 {[%clk 0:02:59]}  O-O {[%clk 0:02:56]} 7. Bb2 {[%clk 0:02:59]}  b6 {[%clk 0:02:44]} 8. Rg1 {[%clk 0:02:43]}  Na6 {[%clk 0:02:36]} 9. g4 {[%clk 0:02:40]}  Nb4 {[%clk 0:01:54]} 10. Qb1 {[%clk 0:02:39]}  e5 {[%clk 0:01:47]} 11. g5 {[%clk 0:02:38]}  Nh5 {[%clk 0:01:31]} 12. a3 {[%clk 0:02:34]}  e4 {[%clk 0:01:26]} 13. axb4 {[%clk 0:02:13]}  exf3 {[%clk 0:01:26]} 14. Qd1 {[%clk 0:02:13]}  d4 {[%clk 0:01:03]} 15. Ne4 {[%clk 0:02:10]}  dxe3 {[%clk 0:01:01]} 16. Qxf3 {[%clk 0:01:56]}  exd2+ {[%clk 0:00:54]} 17. Kd1 {[%clk 0:01:55]}  Re8 {[%clk 0:00:27]} 18. Bd3 {[%clk 0:01:50]}  Be5 {[%clk 0:00:20]} 19. Bxe5 {[%clk 0:00:27]}  Rxe5 {[%clk 0:00:21]} 20. Ra2 {[%clk 0:00:27]}  Bf5 {[%clk 0:00:17]} 21. Rxd2 {[%clk 0:00:26]}  Qe7 {[%clk 0:00:17]} 22. Nf6+ {[%clk 0:00:23]}  Nxf6 {[%clk 0:00:17]} 23. Bxf5 {[%clk 0:00:23]}  Ne4 {[%clk 0:00:16]} 24. Bxe4 {[%clk 0:00:21]}  Rxe4 {[%clk 0:00:16]} 25. Kc2 {[%clk 0:00:20]}  Re8 {[%clk 0:00:15]} 26. Rgd1 {[%clk 0:00:19]}  Qxb4 {[%clk 0:00:15]} 27. Rd8 {[%clk 0:00:16]}  a5 {[%clk 0:00:05]} 28. Qxe4 {[%clk 0:00:14]} 1-0

[Event "January 2 Early 2024"]
[Site "https://www.chess.com"]
[Date "2024.01.02"]
[Round "4"]
[White "Domingo Nunez, Ruben"]
[Black "Donchenko, Alexander"]
[Result "0-1"]
[Board "20"]
[TimeControl "180+1"]
[WhiteFideId "22245570"]
[BlackFideId "24603295"]
[WhiteElo "2636"]
[BlackElo "2925"]
[WhiteTeam "ESP"]
[BlackTeam "GER"]
[WhiteClock "0:00:03"]
[BlackClock "0:01:36"]

1. b3 {[%clk 0:02:56]}  Nf6 {[%clk 0:02:59]} 2. Bb2 {[%clk 0:02:56]}  g6 {[%clk 0:03:00]} 3. Nf3 {[%clk 0:02:57]}  Bg7 {[%clk 0:03:00]} 4. g3 {[%clk 0:02:57]}  O-O {[%clk 0:03:01]} 5. Bg2 {[%clk 0:02:57]}  a5 {[%clk 0:03:00]} 6. a4 {[%clk 0:02:56]}  d5 {[%clk 0:02:58]} 7. O-O {[%clk 0:02:55]}  c6 {[%clk 0:02:58]} 8. d3 {[%clk 0:02:51]}  Na6 {[%clk 0:02:58]} 9. Re1 {[%clk 0:02:51]}  Nb4 {[%clk 0:02:57]} 10. c3 {[%clk 0:02:48]}  Na6 {[%clk 0:02:57]} 11. Qc2 {[%clk 0:02:48]}  Bg4 {[%clk 0:02:57]} 12. Nbd2 {[%clk 0:02:49]}  Qc7 {[%clk 0:02:54]} 13. h3 {[%clk 0:02:47]}  Bxf3 {[%clk 0:02:54]} 14. Nxf3 {[%clk 0:02:47]}  e5 {[%clk 0:02:54]} 15. e4 {[%clk 0:02:46]}  dxe4 {[%clk 0:02:55]} 16. dxe4 {[%clk 0:02:46]}  Rfd8 {[%clk 0:02:54]} 17. Ba3 {[%clk 0:02:46]}  Bf8 {[%clk 0:02:54]} 18. Bxf8 {[%clk 0:02:34]}  Kxf8 {[%clk 0:02:55]} 19. Qc1 {[%clk 0:02:31]}  Kg7 {[%clk 0:02:55]} 20. Nh4 {[%clk 0:02:30]}  h6 {[%clk 0:02:51]} 21. Qe3 {[%clk 0:02:23]}  Qd6 {[%clk 0:02:47]} 22. Red1 {[%clk 0:01:59]}  Qc5 {[%clk 0:02:44]} 23. Qe1 {[%clk 0:01:51]}  Qb6 {[%clk 0:02:43]} 24. Bf1 {[%clk 0:01:45]}  Nc5 {[%clk 0:02:37]} 25. Qe3 {[%clk 0:01:40]}  Rxd1 {[%clk 0:02:25]} 26. Rxd1 {[%clk 0:01:39]}  Qxb3 {[%clk 0:02:25]} 27. Rc1 {[%clk 0:01:28]}  Nxa4 {[%clk 0:02:19]} 28. Nf3 {[%clk 0:01:23]}  Qb6 {[%clk 0:02:11]} 29. Qe1 {[%clk 0:01:09]}  Qc7 {[%clk 0:02:06]} 30. Qe3 {[%clk 0:00:56]}  b6 {[%clk 0:02:05]} 31. Bc4 {[%clk 0:00:53]}  Nc5 {[%clk 0:02:04]} 32. Nd2 {[%clk 0:00:47]}  a4 {[%clk 0:02:04]} 33. f4 {[%clk 0:00:47]}  Re8 {[%clk 0:02:03]} 34. f5 {[%clk 0:00:46]}  Rd8 {[%clk 0:01:59]} 35. fxg6 {[%clk 0:00:44]}  fxg6 {[%clk 0:01:59]} 36. Rf1 {[%clk 0:00:44]}  Qd6 {[%clk 0:01:51]} 37. Nf3 {[%clk 0:00:42]}  Ncxe4 {[%clk 0:01:51]} 38. Kh2 {[%clk 0:00:33]}  Qc5 {[%clk 0:01:48]} 39. Qe2 {[%clk 0:00:30]}  Nxc3 {[%clk 0:01:46]} 40. Qf2 {[%clk 0:00:21]}  Qxc4 {[%clk 0:01:42]} 41. Nxe5 {[%clk 0:00:21]}  Qe6 {[%clk 0:01:42]} 42. Re1 {[%clk 0:00:17]}  Nce4 {[%clk 0:01:41]} 43. Qf4 {[%clk 0:00:15]}  Rd2+ {[%clk 0:01:40]} 44. Kg1 {[%clk 0:00:03]}  Rf2 {[%clk 0:01:36]} 0-1

[Event "January 2 Early 2024"]
[Site "https://www.chess.com"]
[Date "2024.01.02"]
[Round "4"]
[White "Corrales Jimenez, Fidel"]
[Black "Kuzmin, Roman"]
[Result "1-0"]
[Board "21"]
[TimeControl "180+1"]
[WhiteFideId "3506690"]
[BlackFideId "44134932"]
[WhiteElo "2923"]
[BlackElo "2613"]
[WhiteTeam "USA"]
[BlackTeam "RUS"]
[WhiteClock "0:02:15"]
[BlackClock "0:00:00"]

1. e4 {[%clk 0:03:00]}  c5 {[%clk 0:02:59]} 2. Nf3 {[%clk 0:03:00]}  d6 {[%clk 0:03:00]} 3. d4 {[%clk 0:03:01]}  cxd4 {[%clk 0:03:01]} 4. Nxd4 {[%clk 0:03:01]}  Nf6 {[%clk 0:03:01]} 5. Nc3 {[%clk 0:03:02]}  a6 {[%clk 0:03:02]} 6. Bg5 {[%clk 0:03:02]}  e6 {[%clk 0:03:02]} 7. Qf3 {[%clk 0:03:02]}  h6 {[%clk 0:03:00]} 8. Bd2 {[%clk 0:03:01]}  Qc7 {[%clk 0:02:57]} 9. O-O-O {[%clk 0:03:01]}  b5 {[%clk 0:02:57]} 10. a3 {[%clk 0:03:01]}  Bb7 {[%clk 0:02:58]} 11. g4 {[%clk 0:02:46]}  Nbd7 {[%clk 0:02:58]} 12. Bg2 {[%clk 0:02:42]}  Ne5 {[%clk 0:02:56]} 13. Qg3 {[%clk 0:02:42]}  Nc4 {[%clk 0:02:46]} 14. h4 {[%clk 0:02:31]}  Nd7 {[%clk 0:00:00]} 15. g5 {[%clk 0:02:15]} 1-0

[Event "January 2 Early 2024"]
[Site "https://www.chess.com"]
[Date "2024.01.02"]
[Round "4"]
[White "Fedoseev, Vladimir"]
[Black "Lima, Kleyton Alcantara"]
[Result "1-0"]
[Board "23"]
[TimeControl "180+1"]
[WhiteFideId "24130737"]
[BlackFideId "22718397"]
[WhiteElo "3030"]
[BlackElo "2611"]
[WhiteTeam "SLO"]
[BlackTeam "BRA"]
[WhiteClock "0:01:08"]
[BlackClock "0:00:31"]

1. Nf3 {[%clk 0:03:00]}  c5 {[%clk 0:02:59]} 2. e3 {[%clk 0:02:59]}  Nf6 {[%clk 0:02:58]} 3. b3 {[%clk 0:02:58]}  g6 {[%clk 0:02:59]} 4. Bb2 {[%clk 0:02:58]}  Bg7 {[%clk 0:02:59]} 5. c4 {[%clk 0:02:58]}  O-O {[%clk 0:02:52]} 6. Be2 {[%clk 0:02:58]}  b6 {[%clk 0:02:09]} 7. d4 {[%clk 0:02:56]}  d6 {[%clk 0:02:06]} 8. d5 {[%clk 0:02:53]}  Bg4 {[%clk 0:02:05]} 9. Nbd2 {[%clk 0:02:51]}  Nbd7 {[%clk 0:02:05]} 10. O-O {[%clk 0:02:50]}  a6 {[%clk 0:02:05]} 11. a4 {[%clk 0:02:48]}  Re8 {[%clk 0:02:00]} 12. h3 {[%clk 0:02:26]}  Bxf3 {[%clk 0:01:50]} 13. Nxf3 {[%clk 0:02:26]}  Nf8 {[%clk 0:01:44]} 14. Qc2 {[%clk 0:02:25]}  e5 {[%clk 0:01:38]} 15. dxe6 {[%clk 0:02:26]}  Nxe6 {[%clk 0:01:34]} 16. Rfd1 {[%clk 0:02:25]}  Qc7 {[%clk 0:01:34]} 17. Nh2 {[%clk 0:02:15]}  Rad8 {[%clk 0:01:33]} 18. a5 {[%clk 0:02:12]}  d5 {[%clk 0:01:10]} 19. axb6 {[%clk 0:02:09]}  Qxb6 {[%clk 0:01:10]} 20. cxd5 {[%clk 0:02:08]}  Nxd5 {[%clk 0:01:09]} 21. Bxg7 {[%clk 0:02:08]}  Kxg7 {[%clk 0:01:09]} 22. Qb2+ {[%clk 0:02:01]}  Kg8 {[%clk 0:01:08]} 23. Ng4 {[%clk 0:01:31]}  h5 {[%clk 0:01:08]} 24. Nh6+ {[%clk 0:01:18]}  Kh7 {[%clk 0:01:08]} 25. Nxf7 {[%clk 0:01:17]}  Rd7 {[%clk 0:01:05]} 26. Rxa6 {[%clk 0:01:11]}  Qb8 {[%clk 0:00:33]} 27. Rxe6 {[%clk 0:01:08]}  Rxf7 {[%clk 0:00:32]} 28. Rxe8 {[%clk 0:01:08]}  Qxe8 {[%clk 0:00:31]} 29. Rxd5 {[%clk 0:01:08]} 1-0

[Event "January 2 Early 2024"]
[Site "https://www.chess.com"]
[Date "2024.01.02"]
[Round "4"]
[White "Bartel, Mateusz"]
[Black "Bluebaum, Matthias"]
[Result "0-1"]
[Board "25"]
[TimeControl "180+1"]
[WhiteFideId "1112635"]
[BlackFideId "24651516"]
[WhiteElo "2804"]
[BlackElo "3007"]
[WhiteTeam "POL"]
[BlackTeam "GER"]
[WhiteClock "0:00:19"]
[BlackClock "0:01:07"]

1. d4 {[%clk 0:02:59]}  d5 {[%clk 0:03:00]} 2. Bf4 {[%clk 0:02:58]}  c5 {[%clk 0:02:59]} 3. e3 {[%clk 0:02:57]}  Nc6 {[%clk 0:03:00]} 4. c3 {[%clk 0:02:57]}  e6 {[%clk 0:03:00]} 5. Nf3 {[%clk 0:02:56]}  Bd6 {[%clk 0:02:59]} 6. Bg3 {[%clk 0:02:55]}  Nge7 {[%clk 0:02:59]} 7. Bd3 {[%clk 0:02:52]}  O-O {[%clk 0:02:59]} 8. Nbd2 {[%clk 0:02:52]}  cxd4 {[%clk 0:02:59]} 9. exd4 {[%clk 0:02:51]}  f6 {[%clk 0:03:00]} 10. Qb1 {[%clk 0:02:34]}  h6 {[%clk 0:02:57]} 11. O-O {[%clk 0:02:32]}  Bxg3 {[%clk 0:02:49]} 12. hxg3 {[%clk 0:02:31]}  e5 {[%clk 0:02:49]} 13. Bc2 {[%clk 0:01:58]}  e4 {[%clk 0:02:45]} 14. Nh2 {[%clk 0:01:52]}  f5 {[%clk 0:02:42]} 15. f4 {[%clk 0:01:49]}  Be6 {[%clk 0:02:24]} 16. Qe1 {[%clk 0:01:48]}  Rc8 {[%clk 0:02:20]} 17. Rf2 {[%clk 0:01:49]}  b5 {[%clk 0:02:02]} 18. Ndf1 {[%clk 0:01:26]}  b4 {[%clk 0:01:59]} 19. Ne3 {[%clk 0:01:26]}  bxc3 {[%clk 0:01:59]} 20. bxc3 {[%clk 0:01:26]}  Qa5 {[%clk 0:01:53]} 21. Bb3 {[%clk 0:01:25]}  Rc7 {[%clk 0:01:47]} 22. g4 {[%clk 0:01:10]}  Rfc8 {[%clk 0:01:28]} 23. gxf5 {[%clk 0:01:02]}  Nxf5 {[%clk 0:01:28]} 24. Nxf5 {[%clk 0:00:28]}  Bxf5 {[%clk 0:01:29]} 25. Nf1 {[%clk 0:00:29]}  Ne7 {[%clk 0:01:19]} 26. Ne3 {[%clk 0:00:29]}  Rxc3 {[%clk 0:01:08]} 27. Nxf5 {[%clk 0:00:28]}  Nxf5 {[%clk 0:01:09]} 28. Qxe4 {[%clk 0:00:27]}  Rc1+ {[%clk 0:01:05]} 29. Rxc1 {[%clk 0:00:27]}  Rxc1+ {[%clk 0:01:06]} 30. Kh2 {[%clk 0:00:27]}  Rh1+ {[%clk 0:01:06]} 31. Kxh1 {[%clk 0:00:19]}  Ng3+ {[%clk 0:01:07]} 0-1

[Event "January 2 Early 2024"]
[Site "https://www.chess.com"]
[Date "2024.01.02"]
[Round "4"]
[White "Kramnik, Vladimir"]
[Black "Gabrielian, Artur"]
[Result "1-0"]
[Board "26"]
[TimeControl "180+1"]
[WhiteFideId "4101588"]
[BlackFideId "4131002"]
[WhiteElo "2982"]
[BlackElo "2803"]
[WhiteTeam "RUS"]
[BlackTeam "RUS"]
[WhiteClock "0:01:07"]
[BlackClock "0:00:00"]

1. c4 {[%clk 0:03:00]}  Nf6 {[%clk 0:02:57]} 2. Nc3 {[%clk 0:02:59]}  g6 {[%clk 0:02:58]} 3. g3 {[%clk 0:02:58]}  Bg7 {[%clk 0:02:58]} 4. Bg2 {[%clk 0:02:58]}  O-O {[%clk 0:02:59]} 5. d3 {[%clk 0:02:59]}  d6 {[%clk 0:02:59]} 6. Rb1 {[%clk 0:02:57]}  a5 {[%clk 0:02:51]} 7. a3 {[%clk 0:02:55]}  e5 {[%clk 0:02:51]} 8. b4 {[%clk 0:02:53]}  axb4 {[%clk 0:02:51]} 9. axb4 {[%clk 0:02:54]}  c6 {[%clk 0:02:52]} 10. b5 {[%clk 0:02:52]}  d5 {[%clk 0:02:52]} 11. bxc6 {[%clk 0:02:52]}  bxc6 {[%clk 0:02:52]} 12. cxd5 {[%clk 0:02:51]}  cxd5 {[%clk 0:02:51]} 13. Bg5 {[%clk 0:02:38]}  Be6 {[%clk 0:02:43]} 14. Nf3 {[%clk 0:02:34]}  Nbd7 {[%clk 0:02:26]} 15. O-O {[%clk 0:02:29]}  Rc8 {[%clk 0:02:25]} 16. Nb5 {[%clk 0:02:21]}  h6 {[%clk 0:02:23]} 17. Bd2 {[%clk 0:02:17]}  Rb8 {[%clk 0:02:08]} 18. Qa4 {[%clk 0:02:05]}  d4 {[%clk 0:01:52]} 19. Ba5 {[%clk 0:01:56]}  Ra8 {[%clk 0:01:36]} 20. Bxd8 {[%clk 0:01:55]}  Rxa4 {[%clk 0:01:35]} 21. Be7 {[%clk 0:01:49]}  Rc8 {[%clk 0:01:14]} 22. Bxf6 {[%clk 0:01:32]}  Bxf6 {[%clk 0:01:12]} 23. Rfc1 {[%clk 0:01:33]}  Rxc1+ {[%clk 0:01:10]} 24. Rxc1 {[%clk 0:01:34]}  Kg7 {[%clk 0:01:08]} 25. Nc7 {[%clk 0:01:31]}  Ra7 {[%clk 0:00:29]} 26. Nxe6+ {[%clk 0:01:26]}  fxe6 {[%clk 0:00:29]} 27. Bh3 {[%clk 0:01:26]}  Kf7 {[%clk 0:00:24]} 28. Rc6 {[%clk 0:01:25]}  Nf8 {[%clk 0:00:20]} 29. Nd2 {[%clk 0:01:24]}  Bd8 {[%clk 0:00:04]} 30. Ne4 {[%clk 0:01:21]}  Bc7 {[%clk 0:00:03]} 31. Bg4 {[%clk 0:01:19]}  h5 {[%clk 0:00:02]} 32. Ng5+ {[%clk 0:01:15]}  Ke7 {[%clk 0:00:02]} 33. Bxe6 {[%clk 0:01:11]}  Nxe6 {[%clk 0:00:01]} 34. Rxe6+ {[%clk 0:01:10]}  Kd7 {[%clk 0:00:01]} 35. Rxg6 {[%clk 0:01:09]}  Ra1+ {[%clk 0:00:01]} 36. Kg2 {[%clk 0:01:09]}  Re1 {[%clk 0:00:00]} 37. Kf3 {[%clk 0:01:07]} 1-0

[Event "January 2 Early 2024"]
[Site "https://www.chess.com"]
[Date "2024.01.02"]
[Round "4"]
[White "Klymchuk, Andriy"]
[Black "Manolache, Marius"]
[Result "1-0"]
[Board "30"]
[TimeControl "180+1"]
[WhiteFideId "14140063"]
[BlackFideId "1201530"]
[WhiteElo "2890"]
[BlackElo "2698"]
[WhiteTeam "UKR"]
[BlackTeam "ROU"]
[WhiteClock "0:00:25"]
[BlackClock "0:00:00"]

1. e4 {[%clk 0:03:00]}  c5 {[%clk 0:02:59]} 2. Nf3 {[%clk 0:03:00]}  e6 {[%clk 0:02:59]} 3. g3 {[%clk 0:02:59]}  d5 {[%clk 0:02:58]} 4. exd5 {[%clk 0:02:59]}  exd5 {[%clk 0:02:58]} 5. Bg2 {[%clk 0:02:59]}  Nf6 {[%clk 0:02:58]} 6. O-O {[%clk 0:02:59]}  Be7 {[%clk 0:02:58]} 7. d4 {[%clk 0:03:00]}  c4 {[%clk 0:02:58]} 8. Ne5 {[%clk 0:02:58]}  O-O {[%clk 0:02:56]} 9. Nc3 {[%clk 0:02:57]}  h6 {[%clk 0:02:52]} 10. Re1 {[%clk 0:02:55]}  Na6 {[%clk 0:02:45]} 11. h3 {[%clk 0:02:49]}  Nc7 {[%clk 0:02:44]} 12. g4 {[%clk 0:02:46]}  b5 {[%clk 0:02:39]} 13. a3 {[%clk 0:02:45]}  Bb7 {[%clk 0:02:38]} 14. Ne2 {[%clk 0:02:36]}  Ne4 {[%clk 0:02:32]} 15. Ng3 {[%clk 0:02:24]}  Nxg3 {[%clk 0:02:32]} 16. fxg3 {[%clk 0:02:25]}  Bg5 {[%clk 0:02:29]} 17. c3 {[%clk 0:02:22]}  Bxc1 {[%clk 0:02:17]} 18. Qxc1 {[%clk 0:02:21]}  Qg5 {[%clk 0:02:14]} 19. Qxg5 {[%clk 0:02:08]}  hxg5 {[%clk 0:02:13]} 20. h4 {[%clk 0:02:06]}  gxh4 {[%clk 0:02:09]} 21. gxh4 {[%clk 0:02:07]}  Rfe8 {[%clk 0:02:08]} 22. Kf2 {[%clk 0:02:07]}  a5 {[%clk 0:01:57]} 23. g5 {[%clk 0:02:02]}  Bc8 {[%clk 0:01:53]} 24. Nc6 {[%clk 0:01:55]}  Be6 {[%clk 0:01:48]} 25. h5 {[%clk 0:01:50]}  Ra6 {[%clk 0:01:45]} 26. Ne5 {[%clk 0:01:48]}  Bf5 {[%clk 0:01:39]} 27. Kg3 {[%clk 0:01:44]}  Rae6 {[%clk 0:01:36]} 28. Nf3 {[%clk 0:01:34]}  Be4 {[%clk 0:01:29]} 29. Bh3 {[%clk 0:01:30]}  R6e7 {[%clk 0:01:21]} 30. Ne5 {[%clk 0:01:30]}  Ne6 {[%clk 0:01:19]} 31. g6 {[%clk 0:01:22]}  Ng5 {[%clk 0:01:12]} 32. gxf7+ {[%clk 0:01:16]}  Nxf7 {[%clk 0:01:12]} 33. Ng6 {[%clk 0:01:09]}  Rc7 {[%clk 0:01:10]} 34. Rf1 {[%clk 0:01:03]}  Ng5 {[%clk 0:01:02]} 35. Rae1 {[%clk 0:01:00]}  Nxh3 {[%clk 0:00:57]} 36. Kxh3 {[%clk 0:01:00]}  Rc6 {[%clk 0:00:49]} 37. Ne5 {[%clk 0:00:59]}  Rh6 {[%clk 0:00:47]} 38. Kg4 {[%clk 0:01:00]}  Rf6 {[%clk 0:00:42]} 39. Rg1 {[%clk 0:00:48]}  b4 {[%clk 0:00:40]} 40. axb4 {[%clk 0:00:48]}  axb4 {[%clk 0:00:40]} 41. Re3 {[%clk 0:00:48]}  bxc3 {[%clk 0:00:37]} 42. bxc3 {[%clk 0:00:48]}  Ref8 {[%clk 0:00:35]} 43. Kh4 {[%clk 0:00:48]}  Rf4+ {[%clk 0:00:34]} 44. Rg4 {[%clk 0:00:48]}  Kh7 {[%clk 0:00:30]} 45. Rxf4 {[%clk 0:00:47]}  Rxf4+ {[%clk 0:00:30]} 46. Kg5 {[%clk 0:00:48]}  Rf1 {[%clk 0:00:30]} 47. Kg4 {[%clk 0:00:44]}  Rg1+ {[%clk 0:00:26]} 48. Rg3 {[%clk 0:00:43]}  Rc1 {[%clk 0:00:24]} 49. Nf7 {[%clk 0:00:43]}  g6 {[%clk 0:00:19]} 50. hxg6+ {[%clk 0:00:40]}  Kxg6 {[%clk 0:00:19]} 51. Nd6 {[%clk 0:00:38]}  Bd3 {[%clk 0:00:18]} 52. Kf4+ {[%clk 0:00:38]}  Kf6 {[%clk 0:00:19]} 53. Rh3 {[%clk 0:00:38]}  Rxc3 {[%clk 0:00:18]} 54. Rh6+ {[%clk 0:00:39]}  Ke7 {[%clk 0:00:18]} 55. Ke5 {[%clk 0:00:39]}  Bf1 {[%clk 0:00:16]} 56. Kxd5 {[%clk 0:00:37]}  Rf3 {[%clk 0:00:14]} 57. Rh7+ {[%clk 0:00:37]}  Kf8 {[%clk 0:00:14]} 58. Nxc4 {[%clk 0:00:35]}  Rf5+ {[%clk 0:00:11]} 59. Ne5 {[%clk 0:00:35]}  Rf6 {[%clk 0:00:10]} 60. Ra7 {[%clk 0:00:32]}  Bg2+ {[%clk 0:00:09]} 61. Kc5 {[%clk 0:00:33]}  Re6 {[%clk 0:00:08]} 62. Nd7+ {[%clk 0:00:30]}  Ke8 {[%clk 0:00:08]} 63. d5 {[%clk 0:00:30]}  Bxd5 {[%clk 0:00:08]} 64. Kxd5 {[%clk 0:00:29]}  Re1 {[%clk 0:00:09]} 65. Nf6+ {[%clk 0:00:28]}  Kf8 {[%clk 0:00:09]} 66. Ng4 {[%clk 0:00:27]}  Re2 {[%clk 0:00:08]} 67. Ne5 {[%clk 0:00:27]}  Rb2 {[%clk 0:00:08]} 68. Kd6 {[%clk 0:00:26]}  Kg8 {[%clk 0:00:08]} 69. Nc4 {[%clk 0:00:24]}  Re2 {[%clk 0:00:07]} 70. Kd5 {[%clk 0:00:25]}  Re1 {[%clk 0:00:07]} 71. Ne5 {[%clk 0:00:24]}  Rb1 {[%clk 0:00:06]} 72. Ke6 {[%clk 0:00:24]}  Rb6+ {[%clk 0:00:06]} 73. Kf5 {[%clk 0:00:24]}  Rd6 {[%clk 0:00:00]} 74. Ng4 {[%clk 0:00:25]} 1-0

[Event "January 2 Early 2024"]
[Site "https://www.chess.com"]
[Date "2024.01.02"]
[Round "4"]
[White "Yeletsky, Ivan"]
[Black "Han, Yichen"]
[Result "1/2-1/2"]
[Board "31"]
[TimeControl "180+1"]
[WhiteFideId "24180327"]
[BlackFideId "1054430"]
[WhiteElo "2867"]
[BlackElo "2685"]
[WhiteTeam "RUS"]
[BlackTeam "NED"]
[WhiteClock "0:00:04"]
[BlackClock "0:00:06"]

1. d4 {[%clk 0:03:00]}  d5 {[%clk 0:02:58]} 2. c4 {[%clk 0:02:59]}  c6 {[%clk 0:02:58]} 3. Nf3 {[%clk 0:02:59]}  Nf6 {[%clk 0:02:58]} 4. g3 {[%clk 0:02:58]}  e6 {[%clk 0:02:54]} 5. Nbd2 {[%clk 0:02:56]}  Nbd7 {[%clk 0:02:47]} 6. Bg2 {[%clk 0:02:56]}  Bd6 {[%clk 0:02:44]} 7. O-O {[%clk 0:02:56]}  O-O {[%clk 0:02:44]} 8. Qc2 {[%clk 0:02:56]}  b6 {[%clk 0:02:43]} 9. e4 {[%clk 0:02:56]}  dxe4 {[%clk 0:02:43]} 10. Nxe4 {[%clk 0:02:21]}  Nxe4 {[%clk 0:02:41]} 11. Qxe4 {[%clk 0:02:22]}  Bb7 {[%clk 0:02:40]} 12. Rd1 {[%clk 0:02:12]}  Qc7 {[%clk 0:02:35]} 13. Qd3 {[%clk 0:01:48]}  h6 {[%clk 0:02:03]} 14. c5 {[%clk 0:01:43]}  Be7 {[%clk 0:01:52]} 15. Bf4 {[%clk 0:01:43]}  Qc8 {[%clk 0:01:52]} 16. b4 {[%clk 0:01:39]}  Rd8 {[%clk 0:01:37]} 17. Qb3 {[%clk 0:01:27]}  Nf6 {[%clk 0:01:25]} 18. Rac1 {[%clk 0:01:24]}  Nd5 {[%clk 0:01:24]} 19. Bd2 {[%clk 0:01:24]}  Bf6 {[%clk 0:01:22]} 20. a4 {[%clk 0:01:16]}  b5 {[%clk 0:01:16]} 21. Re1 {[%clk 0:00:57]}  a6 {[%clk 0:01:00]} 22. h4 {[%clk 0:00:57]}  Qd7 {[%clk 0:00:57]} 23. Ne5 {[%clk 0:00:41]}  Bxe5 {[%clk 0:00:53]} 24. dxe5 {[%clk 0:00:42]}  Ne7 {[%clk 0:00:33]} 25. Rcd1 {[%clk 0:00:42]}  Qd3 {[%clk 0:00:33]} 26. Bc3 {[%clk 0:00:40]}  Qc4 {[%clk 0:00:26]} 27. Qxc4 {[%clk 0:00:26]}  bxc4 {[%clk 0:00:26]} 28. Rd6 {[%clk 0:00:26]}  Nd5 {[%clk 0:00:21]} 29. Rc1 {[%clk 0:00:24]}  Kf8 {[%clk 0:00:13]} 30. Bf1 {[%clk 0:00:24]}  Ke7 {[%clk 0:00:11]} 31. a5 {[%clk 0:00:20]}  Rab8 {[%clk 0:00:11]} 32. Bxc4 {[%clk 0:00:20]}  Rd7 {[%clk 0:00:06]} 33. h5 {[%clk 0:00:18]}  Rdd8 {[%clk 0:00:06]} 34. Bd2 {[%clk 0:00:18]}  Rd7 {[%clk 0:00:06]} 35. f3 {[%clk 0:00:16]}  Nc7 {[%clk 0:00:06]} 36. Kf2 {[%clk 0:00:15]}  Nb5 {[%clk 0:00:05]} 37. Rxd7+ {[%clk 0:00:13]}  Kxd7 {[%clk 0:00:05]} 38. Be3 {[%clk 0:00:14]}  Nc7 {[%clk 0:00:05]} 39. Rd1+ {[%clk 0:00:14]}  Nd5 {[%clk 0:00:06]} 40. Bd2 {[%clk 0:00:11]}  Ke7 {[%clk 0:00:05]} 41. g4 {[%clk 0:00:09]}  Bc8 {[%clk 0:00:05]} 42. f4 {[%clk 0:00:09]}  Bb7 {[%clk 0:00:02]} 43. Kg3 {[%clk 0:00:07]}  Rd8 {[%clk 0:00:03]} 44. Be1 {[%clk 0:00:07]}  Nc7 {[%clk 0:00:03]} 45. Rd6 {[%clk 0:00:06]}  Nb5 {[%clk 0:00:03]} 46. Rxd8 {[%clk 0:00:04]}  Kxd8 {[%clk 0:00:04]} 47. f5 {[%clk 0:00:05]}  Nd4 {[%clk 0:00:04]} 48. Kf4 {[%clk 0:00:04]}  Ke7 {[%clk 0:00:03]} 49. Bf2 {[%clk 0:00:05]}  Nc2 {[%clk 0:00:02]} 50. Bh4+ {[%clk 0:00:05]}  Kd7 {[%clk 0:00:02]} 51. f6 {[%clk 0:00:06]}  g6 {[%clk 0:00:02]} 52. hxg6 {[%clk 0:00:03]}  fxg6 {[%clk 0:00:03]} 53. Ke4 {[%clk 0:00:04]}  g5 {[%clk 0:00:03]} 54. Bf2 {[%clk 0:00:03]}  Nxb4 {[%clk 0:00:03]} 55. Be3 {[%clk 0:00:02]}  Nd5 {[%clk 0:00:04]} 56. Bd2 {[%clk 0:00:03]}  Ke8 {[%clk 0:00:04]} 57. Kd4 {[%clk 0:00:03]}  Kf7 {[%clk 0:00:04]} 58. Bd3 {[%clk 0:00:04]}  Bc8 {[%clk 0:00:04]} 59. Be2 {[%clk 0:00:03]}  Bb7 {[%clk 0:00:04]} 60. Bf1 {[%clk 0:00:03]}  Bc8 {[%clk 0:00:05]} 61. Bc1 {[%clk 0:00:04]}  Bb7 {[%clk 0:00:05]} 62. Bd3 {[%clk 0:00:04]}  Bc8 {[%clk 0:00:06]} 63. Bd2 {[%clk 0:00:04]}  Bb7 {[%clk 0:00:06]} 64. Be4 {[%clk 0:00:04]}  Bc8 {[%clk 0:00:06]} 65. Bd3 {[%clk 0:00:03]}  Bb7 {[%clk 0:00:06]} 66. Be3 {[%clk 0:00:04]}  Bc8 {[%clk 0:00:06]} 67. Bd2 {[%clk 0:00:04]} 1/2-1/2